Workbook

Sheet PRESENTACIÓN

Sheet INSTRUCCIONES

Sheet ENCUESTA
M3: género | N3: Femenino | P3: Honorario
D4: Género | L4: a | N4: Masculino | P4: Contrata
D5: Calidad Jurídica | L5: b | O5: Rural | P5: Planta
D6: Escalafón | L6: c | O6: Urbana
D7: Rango de Edad | L7: d | O7: Mixta | P7: Directivo
L8: e | P8: Profesional
D9: Preguntas generales | L9: f | M9: Nivel de ingreso hogar | O9: 160< | P9: Técnico
L10: g | O10: 160-300 | P10: Administrativo
D11: 1.- ¿Cuál de las siguientes instituciones, cree usted, que es la responsanble de elaborar las ordenanzas ambientales? | L11: h | O11: 301-600 | P11: Auxiliar
L12: i | O12: 601-2000
L13: j | O13: >2000
L14: k
D15: Preguntas del ámbito municipal y comunal
L16: 1 | M16: Rango de edad | O16: 16 - 20
D17: 2.- Considerando que el patrimonio está compuesto por la herencia que recibimos y que transmitimos a nuestra descendencia, y que formas parte de la identidad o lo más representativo de una comuna. | L17: 2 | O17: 21 - 30
L18: 3 | O18: 31- 40
D19: a) ¿Podría mencionar, a su juicio, qué es lo más representativo del Patrimonio Natural de su comuna? (puede ser un lugar en particular, una planta o animal, algún elemento del paisaje, etc.) | L19: 4 | O19: 41 - 50
L20: 5 | O20: 51 - 60
D21: a.1) En primer lugar: | L21: 6 | O21: 61 o más
D22: a.2) En segundo lugar: | L22: 7
L23: 8
D24: b) ¿Podría mencionar, a su juicio, qué es lo más representativo del Patrimonio Cultural de su comuna?
M25: p1 | N25: a) El Congreso
D26: b.1) Patrimonio cultural material (una construcción, una obra artística, etc.): | K26: 8 | N26: b) La Superintendencia del medioambiente
D27: b.2) Patrimonio cultural inmaterial (una costumbre, rito, conocimiento, leyenda, etc.) | K27: Buena | N27: c) El Municipio
K28: Regular | N28: d) El Ministerio del medio ambiente
K29: Mala | N29: e) ministerio de salud
D30: 3.- El cambio climático afectará en su comuna principalmente a los siguientes ámbitos (marcar los más relevantes): | K30: Muy Mala | N30: f) No lo sé
M31: p2 | N31: a) Legal que permite normar y sancionar conductas ambientales de las empresas y el comercio.
D32: 3.1 | G32: 3.1 Otro, en caso de opción 7: | N32: b) Administrativo que permite normar y sancionar conductas ambientales de las personas.
D33: 3.2 | G33: 3.2 Otro, en caso de opción 7: | N33: c) Jurídico que permite normar y sancionar conductas ambientales de la comunidad.
K34: Muy Mal | N34: d) Financiero que permite normar y sancionar conductas ambientales de las personas.
D35: 4.- Ante la siguiente aformación: "mis colegas están muy preocupados por temas ambientales", usted estaría: | K35: Mal | N35: e) No lo sé
K36: Ni mal ni bien
K37: Bien | N37: c) Alguna vez al mes
K38: Muy Bien | N38: d)rara vez
D39: 5.- Y respecto del territorio de la comuna, usted cree que la situación medio ambiental en los últimos 5 años ha: | K39: No Sabe / No responde | N39: e)Nunca
N41: Totalmente de acuerdo
K42: 1 | N42: Más bien de acuerdo
D43: 6.- ¿Cuáles son los problemas ambientales que más afectan su comuna?. Priorice dos, según su gravedad. | K43: 2 | N43: Más bien en desacuerdo
K44: 3 | N44: Totalmente en desacuerdo
D45: 9.1 | G45: 9.1.1 Otro, en caso de opción k: | K45: 4 | N45: Lo ignoro
D46: 9.2 | G46: 9.2.1 Otro, en caso de opción k: | K46: 5
K47: No sabe / No responde
D48: 7.- Cómo evaluaría la contribución que hace el municipio a la protección o cuidado del medio ambiente en su comuna: | N48: Totalmente de acuerdo
N49: Más bien de acuerdo
N50: Más bien en desacuerdo
N51: Totalmente en desacuerdo
D52: 8.- En una escala de 1 a 5, donde 1 significa "muy mal" y 5 "muy bien", ¿Cómo evalúa en la práctica los siguientes servicios municipales? | N52: No se pronuncia
E54: a) Retiro de residuos sólidos domiciliarios (o basura) | N54: Mejorado
E55: b) Mantención de áreas verdes | N55: Mantenido
E56: c) Mantención del entorno limpio | N56: Empeorado
E57: d) Retiro y prevención de microbasurales | N57: No sé
E58: e) Fiscalización ambiental
E59: f) Gestión en fomento de tenencia responsable de mascotas. | N59: Totalmente de acuerdo
E60: g) Atención de denuncias ambientales (sólo si ha denunciado) | N60: Más bien de acuerdo
E61: h) Retiro de escombros generados en el domicilio. (sólo si ha solicitado) | N61: Más bien en desacuerdo
E62: i) Otros (agregar si el municipio quiere evaluar otros servicios) | N62: Totalmente en desacuerdo
N63: No sabe / No responde

Sheet RESPUESTAS
B2: GÉNERO | C2: CALIDAD JURÍDICA | D2: ESCALAFÓN | E2: RANGO DE EDAD | F2: P1 | G2: P2a.1 | H2: P2a.2 | I2: P2b.1 | J2: P2b.2 | K2: P3.1 | L2: P3.1.1 | M2: P3.2 | N2: P3.2.1 | O2: P4 | P2: P5 | Q2: P6.1 | R2: P6.1.1 | S2: P6.2 | T2: P6.2.1 | U2: P7 | V2: P8.a | W2: P8.b | X2: P8.c | Y2: P8.d | Z2: P8.e | AA2: P8.f | AB2: P8.g | AC2: P8.h | AD2: P8.i
B3: Masculino | C3: Planta | D3: Técnico | E3: 31- 40 | F3: c | K3: 1 | M3: 2 | O3: b | P3: d | Q3: h | S3: i | U3: c | V3: 4 | W3: 4 | X3: 3 | Y3: 2 | Z3: 3 | AA3: 3 | AB3: No sabe / No responde | AC3: No sabe / No responde | AD3: No sabe / No responde
B4: Femenino | C4: Planta | D4: Administrativo | E4: 41 - 50 | F4: c | G4: Cuesta Barriga | H4: Carbonera | I4: Casa ejercicios | J4: Cuasimodo | K4: 1 | M4: 6 | O4: b | P4: c | Q4: d | S4: g | U4: c | V4: 2 | W4: 4 | X4: 3 | Y4: 2 | Z4: 3 | AA4: 3 | AB4: 5 | AC4: No sabe / No responde | AD4: No sabe / No responde
C5: Planta | D5: Administrativo | E5: 41 - 50 | F5: c | G5: Cuesta Barriga | H5: Carbonera | I5: Casa de reposo San Ignacio Loyola | K5: 1 | M5: 2 | O5: b | P5: b | Q5: b | S5: g | U5: b | V5: 3 | W5: 3 | X5: 4 | Y5: 3 | Z5: 3 | AA5: 3 | AB5: No sabe / No responde | AC5: 4 | AD5: No sabe / No responde
B6: Femenino | C6: Planta | D6: Técnico | E6: 41 - 50 | F6: c | G6: Cuesta Barriga | H6: Todo el sector rural | I6: Casa ejercicios Ignacio Loyola | J6: Historia de Marruecos | K6: 1 | M6: 2 | O6: d | P6: c | Q6: d | S6: h | U6: c | V6: 1 | W6: 4 | X6: 3 | Y6: 1 | Z6: 1 | AA6: 3 | AB6: 4 | AC6: 1 | AD6: No sabe / No responde
G7: Zona Rural | I7: Feria Costumbrista | J7: La carbonera | K7: 1 | M7: 6 | O7: b | P7: b | Q7: b | S7: d | U7: c | V7: 5 | W7: 5 | X7: 5 | Y7: 5 | Z7: 3 | AA7: 3 | AB7: 3 | AC7: 4 | AD7: No sabe / No responde
F8: b | G8: Zona Rural | H8: Camino Melipilla | I8: Carbonera | J8: Feria Costumbrista | K8: 1 | M8: 6 | O8: b | P8: b | Q8: b | S8: d | U8: c | V8: 5 | W8: 5 | X8: 5 | Y8: 5 | Z8: 3 | AA8: 3 | AB8: 3 | AC8: 5 | AD8: No sabe / No responde
F9: d | G9: Rural | H9: Camino melipilla | I9: Feria Costumbrista | J9: Carbonera | K9: 1 | M9: 6 | O9: b | P9: b | Q9: b | S9: d | U9: c | V9: 4 | W9: 5 | X9: 5 | Y9: 5 | Z9: 3 | AA9: 3 | AB9: 3 | AC9: 4 | AD9: No sabe / No responde
B10: Masculino | C10: Planta | D10: Profesional | E10: 31- 40 | F10: c | G10: Cuesta Barriga | H10: Sector rural | I10: Casa de Ejercicios | K10: 2 | M10: 6 | O10: a | P10: a | Q10: g | S10: i | U10: b | V10: 4 | W10: 5 | X10: 4 | Y10: 4 | Z10: 3 | AA10: 3 | AB10: No sabe / No responde | AC10: No sabe / No responde | AD10: No sabe / No responde
F11: d | K11: 1 | M11: 6 | O11: d | P11: c | Q11: a | S11: d | U11: c | V11: 3 | W11: 2 | X11: 4 | Y11: 1 | Z11: 4 | AA11: 1 | AB11: 2 | AC11: 5 | AD11: No sabe / No responde
B12: Femenino | C12: Contrata | D12: Administrativo | E12: 21 - 30 | F12: d | K12: 1 | M12: 2 | O12: d | P12: c | Q12: b | S12: h | U12: c | V12: 5 | W12: 2 | X12: 3 | Y12: 1 | Z12: 1 | AA12: 2 | AB12: No sabe / No responde | AC12: No sabe / No responde | AD12: 4
B13: Masculino | C13: Planta | D13: Profesional | E13: 31- 40 | G13: Cuesta Barriga | H13: Tiuques | I13: Casa Kaplan | K13: 2 | M13: 4 | O13: b | P13: c | Q13: g | S13: h | U13: c | V13: 2 | W13: 1 | X13: 1 | Y13: 1 | Z13: 1 | AA13: 3 | AB13: No sabe / No responde | AC13: 3 | AD13: No sabe / No responde
B14: Masculino | C14: Honorario | D14: Técnico | E14: 31- 40 | F14: a | G14: Cuesta Barriga | H14: Carbonera | I14: Casa de ejercicios | K14: 1 | M14: 4 | O14: a | P14: c | Q14: b | S14: g | U14: b | V14: 5 | W14: 5 | X14: 5 | Y14: 5 | Z14: 4 | AA14: 3 | AB14: 4 | AC14: 4 | AD14: No sabe / No responde
E15: 41 - 50 | F15: c | G15: Mirador Cuesta Barriga | H15: Bosque nativo sector rural | I15: Casa de retiro san ignacio loyola | J15: Ferias | K15: 1 | M15: 6 | O15: c | P15: c | Q15: d | S15: i | U15: c | V15: 4 | W15: 4 | X15: 2 | Y15: 2 | Z15: 2 | AA15: 2 | AB15: No sabe / No responde | AC15: No sabe / No responde | AD15: No sabe / No responde
E16: 41 - 50 | F16: c | G16: Flora y Fauna cuesta barriga | H16: Parque Carbonera | I16: Iglesia San Ignacio | J16: Celebración fiestas patrias | K16: 1 | M16: 6 | O16: c | P16: d | Q16: a | S16: d | U16: c | V16: 4 | W16: 3 | X16: 3 | Y16: 2 | Z16: 2 | AA16: 3 | AB16: No sabe / No responde | AC16: No sabe / No responde | AD16: No sabe / No responde
B17: Femenino | D17: Técnico | E17: 51 - 60 | F17: d | G17: Escuela Republica Argentina | K17: 2 | M17: 4 | O17: b | P17: a | Q17: f | S17: i | U17: b | V17: 4 | W17: 4 | X17: 3 | Y17: 3 | Z17: 3 | AA17: 3 | AB17: No sabe / No responde | AC17: No sabe / No responde | AD17: No sabe / No responde
B18: Femenino | C18: Planta | D18: Profesional | E18: 41 - 50 | F18: a | G18: Sector rural | I18: Casa ejercicios san ignacio | J18: Historia de la fundación de Padre Hurtado | K18: 1 | M18: 4 | O18: a | P18: c | Q18: b | S18: d | U18: b | V18: 5 | W18: 3 | X18: 4 | Y18: 4 | Z18: 3 | AA18: 4 | AB18: No sabe / No responde | AC18: 5 | AD18: 5
C19: Planta | D19: Profesional | E19: 41 - 50 | F19: c | G19: Cuesta Barriga | H19: Padre Hurtado | I19: Iglesia santa rosa | J19: Ritos religiosos | K19: 4 | M19: 6 | O19: a | P19: c | Q19: d | S19: g | U19: b | V19: 5 | W19: 5 | X19: 4 | Y19: 4 | Z19: 4 | AA19: 5 | AB19: 2 | AC19: 4 | AD19: No sabe / No responde
B20: Femenino | C20: Planta | D20: Técnico | E20: 51 - 60 | F20: c | G20: Cuesta Barriga | I20: Plaza de armas | J20: La estación de trenes | O20: b | P20: b | Q20: d | S20: g | U20: c | V20: 3 | W20: 3 | X20: 4 | Y20: No sabe / No responde | Z20: 3 | AA20: 3 | AB20: No sabe / No responde | AC20: 4 | AD20: No sabe / No responde
B21: Femenino | C21: Contrata | D21: Administrativo | E21: 41 - 50 | F21: b | G21: Paisaje | H21: Cuesta | I21: La carbonera | J21: Celebracion cuasimodo | K21: 1 | M21: 4 | O21: a | P21: b | Q21: g | S21: i | U21: b | V21: 5 | W21: 4 | X21: 4 | Y21: 5 | Z21: 3 | AA21: 3 | AB21: 3 | AC21: 4 | AD21: No sabe / No responde
F22: f | G22: Cuesta Barriga | K22: 4 | M22: 6 | O22: d | P22: c | Q22: d | S22: g | U22: c | V22: 5 | W22: 3 | X22: 3 | Y22: 3 | Z22: 3 | AA22: 1 | AB22: 3 | AC22: 4 | AD22: No sabe / No responde
B23: Masculino | C23: Planta | D23: Administrativo | E23: 21 - 30 | F23: c | G23: Padre Hurtado | H23: Cristaleria Chile | I23: La Camioneta Verde | J23: Cuasimodo | L23: Areas verdes | O23: c | P23: b | Q23: d | S23: g | U23: c | V23: 4 | W23: 4 | X23: 4 | Y23: 4 | Z23: 3 | AA23: 3 | AB23: 3 | AC23: No sabe / No responde | AD23: No sabe / No responde
B24: Masculino | C24: Contrata | D24: Profesional | E24: 31- 40 | F24: c | G24: Padre Hurtado | H24: Municipio | I24: Padre Hurtado | J24: Municipalidad | K24: 1 | M24: 6 | O24: a | P24: c | Q24: b | S24: d | U24: c | V24: 1 | W24: 2 | X24: 2 | Y24: 2 | Z24: 3 | AA24: 1 | AB24: 2 | AC24: 2 | AD24: No sabe / No responde
F25: c | G25: Cuesta Barriga | H25: Sector Rural | I25: Casa Ejercicios | J25: Historia comuna | K25: 3 | M25: 6 | O25: b | P25: c | Q25: b | S25: j | U25: d | V25: 2 | W25: 4 | X25: 3 | Y25: 1 | Z25: 1 | AA25: 3 | AB25: 4 | AC25: 2 | AD25: No sabe / No responde
F26: b | I26: Casa Retiro Ignacio de Loyola | J26: Cuasimodo | K26: 1 | O26: a | P26: b | Q26: b | S26: g | U26: b | V26: 5 | W26: 4 | X26: 4 | Y26: 5 | Z26: 3 | AA26: 2 | AB26: 4 | AC26: 4 | AD26: No sabe / No responde
F27: e | G27: Un sauce | H27: un perro | I27: La Municipalidad | K27: 6 | O27: b | P27: a | Q27: d | S27: e | U27: c | V27: 1 | W27: 1 | X27: 3 | Y27: 4 | Z27: 2 | AA27: 4 | AB27: 4 | AC27: 4 | AD27: No sabe / No responde
F28: d | G28: Carbonera | H28: Cuesta Barriga | I28: Casa de ejercicio | J28: cuacimodo | K28: 4 | M28: 6 | O28: b | P28: b | Q28: g | S28: h | U28: b | V28: 4 | W28: 5 | X28: 5 | Y28: 4 | Z28: 4 | AA28: 3 | AB28: 3 | AC28: 4 | AD28: No sabe / No responde
G29: La Carbonera | H29: Escuela republica argentina | I29: La Carbonera | J29: Semana Santa Rosina | K29: 1 | M29: 2 | O29: b | P29: c | Q29: g | S29: h | U29: d | V29: 1 | W29: 1 | X29: 1 | Y29: 1 | Z29: 1 | AA29: 1 | AB29: 1 | AC29: 1 | AD29: 1
F30: d | G30: Cuesta barriga | H30: sector rural | I30: Casa kaplan | J30: Feria navideña | K30: 4 | M30: 6 | O30: a | P30: b | Q30: b | S30: g | U30: c | V30: 4 | W30: 5 | X30: 3 | Y30: 4 | Z30: 2 | AA30: 4 | AB30: No sabe / No responde | AC30: 5 | AD30: No sabe / No responde
B31: Masculino | C31: Planta | D31: Profesional | E31: 41 - 50 | F31: d | K31: 2 | M31: 6 | O31: a | P31: b | Q31: g | U31: c | V31: 4 | W31: 5 | X31: 5 | Y31: 3 | Z31: 3 | AA31: 3 | AB31: 5 | AC31: 5 | AD31: 5
B32: Femenino | C32: Planta | D32: Técnico | E32: 21 - 30 | F32: b | G32: Cuesta Barriga | I32: Casa de acogida | J32: Carbonera | K32: 4 | M32: 6 | O32: a | P32: b | Q32: g | S32: i | U32: c | V32: 4 | W32: 5 | X32: 5 | Y32: 4 | Z32: 2 | AA32: 2 | AB32: 3 | AC32: 5 | AD32: 5
B33: Femenino | C33: Planta | D33: Administrativo | E33: 16 - 20 | F33: d | G33: La Plaza de Armas | H33: La cuesta barriga | I33: La Carbonera | J33: Sistema de tuneles de la iglesia | K33: 4 | O33: b | P33: c | Q33: a | U33: b | V33: 5 | W33: 4 | X33: No sabe / No responde | Y33: No sabe / No responde | Z33: No sabe / No responde | AA33: 3 | AB33: No sabe / No responde | AC33: No sabe / No responde | AD33: No sabe / No responde
B34: Femenino | C34: Planta | D34: Profesional | E34: 41 - 50 | F34: c | G34: Cuesta Barriga | I34: Casa de Ejercicio Jesuita | J34: Cuasimodo | K34: 1 | M34: 2 | O34: c | P34: b | Q34: b | S34: g | U34: b | V34: 4 | W34: 5 | X34: 5 | Y34: 4 | Z34: 3 | AA34: 2 | AB34: 4 | AC34: 4 | AD34: No sabe / No responde
B35: Femenino | C35: Honorario | E35: 31- 40 | F35: c | G35: Cuesta Barriga | I35: Casa de ejercicio jesuita | J35: Fiesta cuasimodo | K35: 5 | O35: c | P35: b | Q35: b | S35: i | U35: b | V35: 4 | W35: 5 | X35: 5 | Y35: 4 | Z35: 3 | AA35: 2 | AB35: 3 | AC35: 4 | AD35: No sabe / No responde
B36: Femenino | C36: Planta | D36: Directivo | E36: 31- 40 | F36: d | G36: Cuesta Barriga | I36: Casa de ejercicios | K36: 2 | M36: 3 | O36: a | P36: c | Q36: a | S36: g | U36: d | V36: 5 | W36: 5 | X36: 4 | Y36: 2 | Z36: 2 | AA36: 2 | AB36: No sabe / No responde | AC36: 4 | AD36: No sabe / No responde
C37: Planta | D37: Técnico | E37: 41 - 50 | F37: a | G37: Cuesta Barriga | H37: Codorniz | I37: Carbonera | J37: Jugar Rayuela | K37: 1 | M37: 2 | O37: a | P37: c | Q37: d | S37: e | U37: c | V37: 4 | W37: 4 | X37: No sabe / No responde | Y37: 4 | Z37: 4 | AA37: 5 | AB37: 4 | AC37: 4 | AD37: No sabe / No responde
F38: c | G38: Las Carboneras | H38: Casa de Retiro San Ignacio | K38: 1 | M38: 2 | O38: c | P38: a | Q38: g | S38: i | U38: b | V38: 4 | W38: 4 | X38: 3 | Y38: 3 | Z38: No sabe / No responde | AA38: No sabe / No responde | AB38: No sabe / No responde | AC38: No sabe / No responde | AD38: No sabe / No responde
B39: Femenino | C39: Planta | D39: Administrativo | F39: c | G39: Cuesta Barriga | I39: Casa de Ejercicios | J39: Zona Rural | K39: 2 | M39: 4 | O39: c | Q39: c | S39: g | U39: b | V39: 4 | W39: 5 | X39: 4 | Y39: 4 | Z39: No sabe / No responde | AA39: 3 | AB39: No sabe / No responde | AC39: 4 | AD39: No sabe / No responde
B40: Masculino | C40: Planta | D40: Técnico | E40: 51 - 60 | F40: d | G40: La imagen de Padre Hurtado casa de ejercicios Ignacio Loyola | I40: Casa Ejercicio Ignacio Loyola | K40: 1 | M40: 6 | O40: b | P40: b | Q40: b | S40: d | U40: b | V40: 5 | W40: 5 | X40: 5 | Y40: 4 | Z40: 5 | AA40: 4 | AB40: 5 | AC40: 5 | AD40: No sabe / No responde
B41: Femenino | C41: Planta | D41: Técnico | E41: 31- 40 | F41: d | G41: Sector Rural | I41: Centro de espiritualidad San Ignacio de Loyola | J41: Sector Rural (La esperanza , San Luis) | K41: 2 | M41: 6 | O41: c | P41: c | Q41: b | S41: g | U41: c | V41: 4 | W41: 4 | X41: 4 | Y41: 4 | Z41: 3 | AA41: 4 | AB41: 3 | AC41: 4 | AD41: No sabe / No responde
E42: 31- 40 | F42: c | G42: Sector Rural | H42: Los Habitantes | I42: La actual Municipalidad | J42: Las Ferias Libres | K42: 2 | M42: 4 | O42: d | P42: b | Q42: g | R42: Caminos en mal estado | S42: h | T42: Suciedad en espacios concurridos | U42: b | V42: 3 | W42: 4 | X42: 4 | Y42: 5 | Z42: 1 | AA42: 3 | AB42: 3 | AC42: 4 | AD42: No sabe / No responde
B43: Masculino | C43: Planta | D43: Directivo | E43: 31- 40 | F43: c | G43: La Carbonera | H43: El Sector Rural | I43: La Carbonera | J43: El Padre Alberto Hurtado | K43: 1 | M43: 6 | O43: c | P43: b | Q43: g | S43: h | U43: b | V43: 4 | W43: 4 | X43: 4 | Y43: 4 | Z43: 2 | AA43: 4 | AB43: 3 | AC43: 4 | AD43: No sabe / No responde
B44: Femenino | C44: Contrata | D44: Profesional | E44: 31- 40 | F44: c | G44: Que aun es una comuna rural | H44: La cuesta el trebal | I44: Obra del Padre Hurtado | J44: El Dalmata | K44: 4 | O44: c | P44: b | Q44: d | S44: g | U44: b | V44: 5 | W44: 5 | X44: 5 | Y44: 5 | Z44: 4 | AA44: 4 | AB44: No sabe / No responde | AC44: No sabe / No responde | AD44: No sabe / No responde
B45: Femenino | C45: Planta | D45: Técnico | E45: 41 - 50 | F45: d | G45: Sector Rural | I45: Ejercicio Jesuitas | K45: 2 | M45: 6 | O45: a | P45: b | Q45: d | S45: g | U45: b | V45: No sabe / No responde | W45: 5 | X45: 4 | Y45: 5 | Z45: No sabe / No responde | AA45: 3 | AB45: No sabe / No responde | AC45: No sabe / No responde | AD45: No sabe / No responde
B46: Masculino | C46: Honorario | D46: Técnico | E46: 21 - 30 | F46: d | K46: 2 | M46: 3 | O46: c | P46: b | Q46: e | S46: f | U46: c | V46: 3 | W46: 3 | X46: 3 | Y46: 4 | Z46: 2 | AA46: 2 | AB46: 2 | AC46: 4 | AD46: No sabe / No responde
B47: Femenino | C47: Honorario | D47: Profesional | E47: 31- 40 | F47: c | G47: No hay uno representativo definido como tal | H47: Las areas verdes y parques | I47: Parque el manzano | J47: Parque las carboneras | K47: 4 | M47: 6 | O47: c | P47: b | Q47: c | S47: g | U47: c | V47: 4 | W47: 4 | X47: 4 | Y47: 4 | Z47: 3 | AA47: 3 | AB47: 3 | AC47: 3 | AD47: No sabe / No responde
B48: Femenino | C48: Planta | D48: Técnico | E48: 41 - 50 | F48: c | G48: Plaza de armas | H48: Casa Kaplan | I48: Edificio Consistorial | J48: Actividad de los Mapuches Plaza de Armas | K48: 4 | M48: 6 | P48: d | Q48: g | S48: h | U48: d | V48: 3 | W48: 4 | X48: 4 | Y48: 1 | Z48: 1 | AA48: 2 | AB48: 5 | AC48: 5 | AD48: No sabe / No responde
B49: Femenino | C49: Planta | D49: Profesional | E49: 31- 40 | F49: c | G49: Cuesta Barriga | I49: La Carbonera | J49: Folcklore | K49: 2 | M49: 6 | O49: c | P49: b | Q49: g | S49: i | U49: c | V49: 3 | W49: 3 | X49: 4 | Y49: 4 | Z49: 1 | AA49: 2 | AB49: No sabe / No responde | AC49: No sabe / No responde | AD49: No sabe / No responde
B50: Masculino | C50: Planta | D50: Profesional | E50: 31- 40 | F50: c | G50: Cuesta Barriga | I50: Lecheria Santa Cruz | J50: Cueca Folklor | K50: 2 | M50: 6 | O50: a | P50: c | Q50: b | S50: d | U50: c | V50: 4 | W50: 4 | X50: 5 | Y50: 4 | Z50: 3 | AA50: 3 | AB50: No sabe / No responde | AC50: No sabe / No responde | AD50: No sabe / No responde
B51: Masculino | C51: Contrata | D51: Administrativo | E51: 16 - 20 | F51: b | G51: La cuesta barriga | H51: Plaza de armas | I51: Casa Kaplan | J51: Reuniones junta de vecinos | K51: 1 | M51: 4 | O51: b | P51: b | Q51: g | S51: i | U51: b | V51: 5 | W51: 4 | X51: 4 | Y51: 3 | Z51: 4 | AA51: 4 | AB51: No sabe / No responde | AC51: 5 | AD51: No sabe / No responde
B52: Femenino | C52: Planta | E52: 51 - 60 | F52: b | G52: Carbonera | H52: Sector Rural | J52: Su gente y tradiciones | K52: 2 | M52: 6 | O52: c | P52: a | Q52: f | S52: g | U52: c | V52: 3 | W52: 4 | X52: 4 | Y52: 2 | Z52: 2 | AA52: 4 | AB52: 3 | AC52: 4 | AD52: No sabe / No responde
B53: Femenino | C53: Planta | D53: Administrativo | E53: 21 - 30 | F53: b | G53: Area verde dentro de la Municipalidad | H53: Cuesta Barriga | I53: Carbonera | J53: Astrid, la niña hermosa | K53: 8 | O53: c | P53: a | Q53: e | S53: i | U53: c | V53: 5 | W53: 4 | X53: 3 | Y53: 3 | Z53: 2 | AA53: 4 | AB53: No sabe / No responde | AC53: No sabe / No responde | AD53: No sabe / No responde
B54: Femenino | C54: Planta | D54: Directivo | E54: 41 - 50 | F54: c | G54: Cuesta Barriga | H54: Sector Rural | I54: Puente Esperanza | K54: 4 | M54: 6 | O54: c | P54: c | Q54: b | S54: c | U54: c | V54: 3 | W54: 4 | X54: 4 | Y54: 4 | Z54: No sabe / No responde | AA54: No sabe / No responde | AB54: No sabe / No responde | AC54: 2 | AD54: No sabe / No responde
B55: Masculino | C55: Planta | D55: Técnico | E55: 31- 40 | F55: d | G55: Carbonera | H55: Cuesta Barriga | I55: Casa de ejercicios | J55: Beber alcohol en las canchas | K55: 2 | M55: 6 | O55: b | P55: a | Q55: g | S55: i | U55: b | V55: 5 | W55: 4 | X55: 4 | Y55: 4 | Z55: 3 | AA55: 2 | AB55: No sabe / No responde | AC55: 3 | AD55: No sabe / No responde
B56: Masculino | C56: Honorario | D56: Técnico | E56: 31- 40 | F56: b | G56: Cuesta barriga | H56: Rural | I56: Carbonera | J56: Cuacimodo | K56: 2 | M56: 4 | O56: b | P56: b | Q56: c | S56: g | U56: c | V56: 4 | W56: 4 | X56: 4 | Y56: 4 | Z56: 3 | AA56: 2 | AB56: 3 | AC56: 3 | AD56: No sabe / No responde
E57: 41 - 50 | F57: c | G57: Cuesta Barriga | H57: Parques | I57: Carboneras | K57: 2 | M57: 4 | O57: b | P57: c | Q57: g | S57: h | U57: b | V57: 4 | W57: 4 | X57: 3 | Y57: 3 | Z57: 3 | AA57: 3 | AB57: No sabe / No responde | AC57: 3 | AD57: No sabe / No responde
B58: Masculino | C58: Contrata | E58: 31- 40 | F58: c | G58: Cuesta Barriga | H58: Ser una comuna rural en su mayoria | I58: Casa Kaplan | J58: El crecimiento de Padre Hurtado | K58: 2 | O58: c | P58: c | Q58: b | U58: b | V58: 4 | W58: 3 | X58: 3 | Y58: 3 | Z58: 2 | AA58: 2 | AB58: 3 | AC58: No sabe / No responde | AD58: No sabe / No responde
B59: Femenino | C59: Contrata | D59: Administrativo | E59: 31- 40 | F59: b | G59: Plaza de armas | K59: 4 | M59: 6 | O59: b | P59: a | Q59: e | S59: i | U59: b | V59: 5 | W59: 5 | X59: 3 | Y59: 3 | Z59: 3 | AA59: 2 | AB59: No sabe / No responde | AC59: 3 | AD59: No sabe / No responde
B60: Masculino | C60: Contrata | D60: Profesional | E60: 21 - 30 | F60: c | G60: Recursos Naturales | I60: Plaza de armas | J60: Fiesta costumbrista | K60: 2 | M60: 6 | O60: b | P60: b | Q60: d | S60: g | U60: d | V60: 4 | W60: 5 | X60: 4 | Y60: 2 | Z60: 2 | AA60: 2 | AB60: 3 | AC60: 4 | AD60: No sabe / No responde
B61: Femenino | C61: Planta | D61: Profesional | E61: 41 - 50 | F61: c | G61: Cuesta Barriga | H61: Peuco | I61: La Carbonera | J61: Nombre de las calles | K61: 2 | L61: Agricultura | O61: b | P61: b | Q61: f | S61: g | U61: c | V61: 2 | W61: 4 | X61: 4 | Y61: 2 | Z61: 3 | AA61: 3 | AB61: 5 | AC61: 1 | AD61: No sabe / No responde
B62: Femenino | C62: Contrata | D62: Administrativo | E62: 51 - 60 | F62: c | G62: Casa de ejercicios San Ignacio de Loyola | H62: Cuesta Barriga | I62: Casa de ejercicios San Ignacio de Loyola | J62: Feria Costumbrista | K62: 4 | M62: 6 | O62: c | P62: b | Q62: g | S62: i | U62: b | V62: 4 | W62: 5 | X62: 4 | Y62: 3 | Z62: 2 | AA62: 2 | AB62: 5 | AC62: No sabe / No responde | AD62: No sabe / No responde
B63: Femenino | C63: Planta | D63: Administrativo | E63: 31- 40 | F63: c | G63: Cuesta Barriga | H63: Sector Rural | I63: Edificio Municipal | J63: Ritos en Ruca Mapuche | K63: 6 | M63: 8 | O63: c | P63: b | Q63: g | S63: i | U63: b | V63: 4 | W63: 5 | X63: 5 | Y63: 4 | Z63: 3 | AA63: 3 | AB63: 4 | AC63: 4 | AD63: 5
F64: d | G64: Puente Ferroviario | H64: Plaza | I64: Cine | J64: Artesanìa | K64: 2 | M64: 3 | O64: a | P64: c | Q64: c | S64: g | V64: 4 | W64: 4 | X64: No sabe / No responde | Y64: 3 | Z64: 3 | AA64: No sabe / No responde | AB64: No sabe / No responde | AC64: No sabe / No responde | AD64: No sabe / No responde
B65: Femenino | C65: Planta | D65: Administrativo | E65: 51 - 60 | F65: c | G65: Cuesta Barriga | H65: Las Carboneras | I65: Cuesta Barriga | J65: Cuesta Barriga | K65: 3 | M65: 6 | O65: a | P65: c | Q65: d | S65: f | U65: e | V65: 3 | W65: 2 | X65: 2 | Y65: 1 | Z65: 1 | AA65: 1 | AB65: 2 | AC65: 2 | AD65: 4
B66: Femenino | C66: Planta | D66: Administrativo | E66: 51 - 60 | F66: c | G66: Mirador Cuesta Barriga | H66: Carbonera | I66: Casa Kaplan | K66: 2 | M66: 6 | O66: a | P66: a | Q66: a | S66: f | U66: b | V66: 4 | W66: 5 | X66: 4 | Y66: 4 | Z66: 3 | AA66: 2 | AB66: 2 | AC66: 2 | AD66: No sabe / No responde
B67: Masculino | C67: Honorario | D67: Profesional | E67: 61 o más | F67: c | G67: El Roble | H67: Río Mapocho | I67: Centro de espiritualidad loyola | J67: Animitas | K67: 2 | M67: 4 | O67: b | P67: c | Q67: d | S67: e | U67: c | V67: 4 | W67: 3 | X67: 3 | Y67: 3 | Z67: 3 | AA67: 3 | AB67: No sabe / No responde | AC67: No sabe / No responde | AD67: No sabe / No responde
B68: Femenino | C68: Planta | D68: Profesional | E68: 31- 40 | F68: c | G68: Cuesta Barriga | H68: Variedad Especies de Árboles | I68: Casa de Ejercicio | J68: Animitas | K68: 1 | M68: 2 | O68: c | P68: a | Q68: g | S68: i | U68: c | V68: 4 | W68: 4 | X68: 4 | Y68: 5 | Z68: 3 | AA68: 1 | AB68: No sabe / No responde | AC68: 4 | AD68: No sabe / No responde
B69: Femenino | C69: Planta | D69: Técnico | E69: 41 - 50 | F69: d | G69: Carboneras | H69: Cuesta Barriga | I69: Carboneras | J69: Peucodañe | K69: 4 | M69: 6 | O69: c | P69: b | Q69: e | S69: g | U69: d | V69: 3 | W69: 3 | X69: 3 | Y69: 3 | Z69: 3 | AA69: 2 | AB69: 2 | AC69: 2 | AD69: No sabe / No responde
F70: d | G70: Cuesta Barriga | I70: Casa retiro Parroquia San Ignacio | K70: 1 | M70: 6 | O70: d | P70: b | Q70: f | S70: i | U70: c | V70: 4 | W70: 5 | X70: 5 | Y70: 4 | Z70: 1 | AA70: 1 | AB70: 2 | AC70: 4 | AD70: No sabe / No responde
B71: Femenino | D71: Administrativo | E71: 41 - 50 | F71: d | G71: Parque Carbonera | H71: Cuesta Barriga | I71: Carbonera | K71: 2 | M71: 6 | O71: b | P71: a | Q71: c | S71: h | U71: c | V71: 3 | W71: 5 | X71: 2 | Y71: 2 | Z71: 2 | AA71: 3 | AB71: No sabe / No responde | AC71: 3 | AD71: No sabe / No responde
B72: Masculino | C72: Honorario | D72: Profesional | E72: 31- 40 | F72: c | G72: Cuesta Barriga | H72: Sector Rural | I72: Iglesia de Loyola | K72: 1 | M72: 4 | O72: a | P72: d | Q72: d | S72: g | U72: b | V72: 4 | W72: 4 | X72: 4 | Y72: No sabe / No responde | Z72: No sabe / No responde | AA72: 4 | AB72: No sabe / No responde | AC72: 4 | AD72: No sabe / No responde
B73: Masculino | C73: Honorario | E73: 16 - 20 | F73: c | G73: Plaza de Armas | K73: 1 | M73: 2 | O73: d | P73: c | Q73: g | S73: h | U73: e | V73: No sabe / No responde | W73: 3 | X73: 3 | Y73: 3 | Z73: 1 | AA73: 1 | AB73: No sabe / No responde | AC73: No sabe / No responde | AD73: No sabe / No responde
B74: Masculino | C74: Planta | D74: Profesional | E74: 31- 40 | F74: c | G74: Cuesta Barriga | H74: Las Carboneras | K74: 1 | M74: 2 | O74: c | P74: a | U74: c | V74: 4 | W74: 4 | X74: 4 | Y74: 3 | Z74: 3 | AA74: 3 | AB74: No sabe / No responde | AC74: 2
B75: Femenino | C75: Honorario | D75: Administrativo | E75: 16 - 20 | F75: d | O75: b | P75: c | Q75: e | S75: h | U75: c | V75: No sabe / No responde | W75: 4 | X75: 3 | Y75: No sabe / No responde | Z75: 2 | AA75: 1 | AB75: No sabe / No responde | AC75: No sabe / No responde | AD75: No sabe / No responde
F76: b | G76: Parque Carbonera | H76: Cuesta Barriga | I76: Ruca y memoriales en cuesta barriga | J76: Ruca indigena | K76: 1 | M76: 2 | O76: a | P76: b | Q76: b | S76: d | V76: 4 | W76: 5 | X76: 4 | Y76: 5 | Z76: 4 | AA76: 4 | AB76: 5 | AC76: 5 | AD76: 4
B77: Masculino | C77: Honorario | D77: Profesional | E77: 31- 40 | F77: b | G77: Cuesta Barriga | H77: Rio Mapocho | I77: Centro Espiritual Loyola | J77: Religion | K77: 1 | M77: 3 | O77: a | P77: c | Q77: d | S77: g | U77: b | V77: 4 | W77: 4 | X77: 4 | Y77: 3 | Z77: 3 | AA77: 4 | AB77: No sabe / No responde | AC77: 4 | AD77: No sabe / No responde
B78: Masculino | C78: Honorario | D78: Técnico | E78: 21 - 30 | F78: d | G78: Carbonera | H78: Plaza de Armas | I78: Carbonera | K78: 4 | M78: 6 | O78: c | P78: c | Q78: g | S78: i | U78: b | V78: 4 | W78: 3 | X78: 3 | Y78: 3 | Z78: 2 | AA78: 2 | AB78: No sabe / No responde | AC78: No sabe / No responde | AD78: No sabe / No responde
B79: Masculino | C79: Contrata | D79: Administrativo | E79: 41 - 50 | F79: d | G79: La Plaza de Armas | H79: Plaza Esmeralda | I79: Casa Kaplan | J79: Estación de trenes santiago - cartagena | K79: 4 | M79: 6 | O79: c | P79: a | Q79: d | S79: g | U79: d | V79: 5 | W79: 5 | X79: 3 | Y79: 4 | Z79: 1 | AA79: 1 | AB79: 1 | AC79: 4 | AD79: No sabe / No responde
B80: Masculino | C80: Honorario | D80: Profesional | E80: 21 - 30 | F80: b | G80: Cuesta Barriga | H80: Rio Mapocho | I80: Parroquia san ignacio de loyola | J80: Religión Catolica | K80: 1 | M80: 3 | O80: a | P80: c | Q80: d | S80: g | U80: b | V80: 4 | W80: 4 | X80: 4 | Y80: 3 | Z80: 3 | AA80: 4 | AB80: No sabe / No responde | AC80: 4 | AD80: No sabe / No responde
F81: f | G81: Cuesta Barriga | I81: Las Carboneras | J81: Casa de retiro sam ignacio loyolo | K81: 2 | M81: 6 | O81: c | P81: b | Q81: f | S81: g | U81: c | V81: 3 | W81: 4 | X81: 3 | Y81: 1 | Z81: 3 | AA81: No sabe / No responde | AB81: No sabe / No responde | AC81: 4 | AD81: No sabe / No responde
F82: c | G82: La carbonera | I82: La carbonera | K82: 3 | M82: 6 | O82: a | P82: c | Q82: d | S82: f | U82: c | V82: 4 | W82: 5 | X82: 4 | Y82: 4 | Z82: 4 | AA82: 3 | AB82: No sabe / No responde | AC82: No sabe / No responde | AD82: No sabe / No responde
B83: Femenino | C83: Honorario | E83: 31- 40 | F83: c | G83: Casa de ejercicios san ignacio de loyola | H83: Sector rural | I83: Casa de ejercicios san ignacio de loyola | K83: 4 | M83: 6 | O83: b | P83: b | Q83: g | S83: i | U83: c | V83: 3 | W83: 1 | X83: 3 | Y83: 2 | Z83: 2 | AA83: 1 | AB83: No sabe / No responde | AC83: 4 | AD83: No sabe / No responde
B84: Femenino | C84: Planta | D84: Administrativo | E84: 41 - 50 | F84: b | G84: Cuesta Barriga | H84: El Trébal | I84: Carbonera | J84: Nos Conocemos todos en la comuna | K84: 4 | M84: 6 | O84: c | P84: b | Q84: f | S84: g | U84: b | V84: 3 | W84: 5 | X84: 4 | Y84: 1 | Z84: No sabe / No responde | AA84: 3 | AB84: No sabe / No responde | AC84: 4 | AD84: No sabe / No responde
B85: Femenino | C85: Contrata | D85: Administrativo | E85: 51 - 60 | F85: c | G85: Nuestros Cerros y su Hábitat | H85: El Río y su entorno | I85: Casa de Ejercicios | J85: Leyenda "El Morro del Fraile" | K85: 2 | M85: 4 | O85: a | P85: a | Q85: b | S85: h | U85: b | V85: 4 | W85: 5 | X85: 3 | Y85: 3 | Z85: 3 | AA85: 4 | AB85: No sabe / No responde | AC85: 3 | AD85: No sabe / No responde
F86: d | G86: Carbonera | H86: Peuco | I86: El Gato Verde | J86: Feria Costumbrista | K86: 1 | M86: 2 | O86: c | P86: a | Q86: g | U86: d | V86: 4 | W86: 5 | X86: 3 | Y86: 4 | Z86: 2 | AA86: 2 | AB86: 2 | AC86: 4 | AD86: 2
B87: Masculino | C87: Planta | D87: Administrativo | E87: 61 o más | F87: d | G87: Zona Rural | H87: Plaza y áreas verdes | I87: Casa de Retiro San Ignacio de Loyola | J87: Marruecos | K87: 2 | M87: 4 | O87: b | P87: c | Q87: d | S87: g | U87: c | V87: 1 | W87: 4 | X87: 2 | Y87: 3 | Z87: 1 | AA87: 2 | AB87: 3 | AC87: 2 | AD87: 3
B88: Masculino | C88: Planta | D88: Profesional | E88: 41 - 50 | F88: c | G88: Cuesta Barriga | I88: Las Carboneras | J88: El Cuasimodo | K88: 6 | L88: Perdida del Bosque esclerofilo | O88: c | P88: a | Q88: b | S88: h | U88: b | V88: 4 | W88: 4 | X88: 4 | Y88: 5 | Z88: 3 | AA88: 3 | AB88: 3 | AC88: 4 | AD88: 5
B89: Femenino | C89: Planta | D89: Profesional | E89: 41 - 50 | F89: c | G89: Camino a Cuesta Barriga | H89: Localidad Rural de la Esperanza | I89: La Casa de Ejercicios del Padre Hurtado | J89: La Feria Costumbrista de Octubre de cada año | K89: 1 | M89: 2 | O89: b | P89: a | Q89: d | S89: e | U89: b | V89: 5 | W89: 4 | X89: 2 | Y89: 2 | Z89: 1 | AA89: 4 | AB89: 4 | AC89: 3 | AD89: No sabe / No responde
B90: Femenino | C90: Contrata | D90: Administrativo | E90: 51 - 60 | F90: c | G90: Cuesta Barriga | H90: Sector Rural Padre Hurtado | I90: Casa de ejercicios San Ignacio Loyola | J90: Ruka Mapuche | K90: 3 | M90: 6 | O90: a | P90: a | Q90: f | S90: g | U90: c | V90: 2 | W90: 1 | X90: 2 | Y90: 1 | Z90: 1 | AA90: 3 | AB90: 1 | AC90: 5 | AD90: No sabe / No responde
B91: Masculino | C91: Contrata | D91: Técnico | E91: 41 - 50 | F91: c | G91: Cuesta Barriga | I91: Casa de ejercicios San Ignacio Loyola | J91: Feria Costumbrista | K91: 2 | M91: 6 | O91: a | P91: a | Q91: e | S91: j | U91: b | V91: 4 | W91: 4 | X91: 4 | Y91: 4 | Z91: 4 | AA91: 4 | AB91: 4 | AC91: 4 | AD91: 4
B92: Masculino | C92: Honorario | D92: Profesional | E92: 21 - 30 | F92: c | G92: Cuesta Barriga | H92: La Carbonera | I92: La Carbonera | J92: Semana Santa Rosina | K92: 3 | M92: 6 | O92: c | P92: a | Q92: e | S92: g | U92: b | V92: 5 | W92: 4 | X92: 3 | Y92: 3 | Z92: 1 | AA92: 1 | AB92: No sabe / No responde | AC92: No sabe / No responde | AD92: No sabe / No responde
F93: d | G93: Cuesta Barriga | H93: Carboneras | I93: Casa retiro | J93: Semana Santa Rosina | K93: 2 | M93: 4 | O93: a | P93: c | Q93: g | U93: b | V93: 4 | W93: 3 | X93: 3 | Y93: 4 | Z93: 2 | AA93: 3 | AB93: 4 | AC93: 4 | AD93: 4
B94: Masculino | C94: Contrata | D94: Profesional | E94: 21 - 30 | F94: c | G94: La Carbonera | H94: Cuesta Barriga | I94: Casa Loyola de retiro | J94: Paseos a Cuesta Barriga | K94: 2 | M94: 6 | O94: b | P94: a | Q94: e | S94: g | U94: b | V94: 4 | W94: 5 | X94: 4 | Y94: 4 | Z94: 3 | AA94: 2 | AB94: 3 | AC94: 4 | AD94: No sabe / No responde
B95: Femenino | C95: Honorario | D95: Técnico | E95: 51 - 60 | F95: c | G95: Rehue de Plaza Mayor | H95: Conservar el nombre Mapuche "Peuco Dañe" o Marrueco | I95: Escultura Representativa Mapuche | J95: Batucadas de Verano / Chinchineros | K95: 1 | M95: 2 | O95: a | P95: b | Q95: g | S95: i | U95: c | V95: 5 | W95: 3 | X95: 3 | Y95: 3 | Z95: 4 | AA95: 3 | AB95: 4 | AC95: 4 | AD95: No sabe / No responde
B96: Femenino | C96: Honorario | D96: Administrativo | E96: 31- 40 | F96: d | G96: Cuesta Barriga | H96: Puente Esperanza | I96: Edificio Consistorial | J96: Costumbres Campesinas | K96: 2 | M96: 6 | O96: b | P96: c | Q96: e | S96: h | U96: c | V96: 4 | W96: 4 | X96: 3 | Y96: 3 | Z96: 2 | AA96: 3 | AB96: 3 | AC96: 4 | AD96: 4
B97: Femenino | C97: Contrata | D97: Profesional | E97: 31- 40 | F97: c | G97: Rio Mapocho | H97: Cerro El Roble | I97: Puente Esperanza | J97: Las Carboneras | K97: 1 | M97: 2 | O97: c | P97: c | Q97: g | S97: h | U97: e | V97: 4 | W97: 3 | X97: 3 | Y97: 2 | Z97: 1 | AA97: 2 | AB97: No sabe / No responde | AC97: No sabe / No responde | AD97: No sabe / No responde
B98: Masculino | C98: Planta | D98: Auxiliar | E98: 41 - 50 | F98: c | G98: La Carbonera | H98: Los Peucos | I98: Casa de Ejercicios | J98: Monolioto desaparecidos cuesta barriga | K98: 2 | M98: 6 | O98: b | P98: b | Q98: f | S98: g | U98: c | V98: 4 | W98: 5 | X98: 4 | Y98: 2 | Z98: 2 | AA98: 2 | AB98: No sabe / No responde | AC98: 4 | AD98: No sabe / No responde
B99: Femenino | C99: Honorario | D99: Profesional | E99: 41 - 50 | F99: c | G99: Cuesta Barriga | H99: Casa de Ejercicios | I99: Remodelación de la carbonera | J99: Semana Padre Hurtadina | K99: 1 | M99: 6 | O99: c | P99: c | Q99: f | R99: Ampliación de la Laguna del Sol | S99: i | U99: c | V99: 3 | W99: 5 | X99: 3 | Y99: 3 | Z99: 3 | AA99: 2 | AB99: No sabe / No responde | AC99: No sabe / No responde | AD99: No sabe / No responde
B100: Masculino | C100: Honorario | D100: Profesional | E100: 31- 40 | F100: b | G100: Cuesta Barriga | I100: La Carbonera | J100: Feria Costumbrista | K100: 1 | M100: 6 | O100: a | P100: b | Q100: c | S100: d | U100: b | V100: 5 | W100: 5 | X100: 5 | Y100: 5 | Z100: 4 | AA100: 4 | AB100: 4 | AC100: 4 | AD100: No sabe / No responde
B101: Masculino | F101: a | K101: 4 | O101: a | P101: a | Q101: a | S101: b | U101: a | V101: 1 | W101: 1 | X101: 1 | Y101: 1 | Z101: 1 | AA101: 1 | AB101: 1 | AC101: 1 | AD101: 1
B102: Femenino | C102: Planta | D102: Técnico | E102: 41 - 50 | F102: c | G102: Cuesta Barriga | H102: Rio Mapocho (Puente Esperanza) | I102: Casa de Ejercicio | J102: Feria Costumbrista | K102: 1 | M102: 6 | O102: a | P102: a | Q102: b | S102: g | U102: c | V102: 5 | W102: 5 | X102: 5 | Y102: 4 | Z102: 4 | AA102: 4 | AB102: No sabe / No responde | AC102: 5 | AD102: No sabe / No responde
B103: Masculino | C103: Contrata | D103: Profesional | E103: 31- 40 | F103: c | G103: La Esperanza | H103: Los Corrales | I103: Camino a Valparaiso | J103: Agricultura | K103: 1 | M103: 6 | O103: b | P103: c | Q103: d | S103: e | U103: b | V103: 4 | W103: 4 | X103: 4 | Y103: 3 | Z103: 3 | AA103: 4 | AB103: No sabe / No responde | AC103: No sabe / No responde | AD103: No sabe / No responde
B104: Masculino | C104: Contrata | D104: Profesional | E104: 31- 40 | F104: c | G104: Cuesta Barriga | I104: Centro civico | K104: 2 | M104: 6 | O104: b | P104: d | Q104: f | S104: h | U104: c | V104: No sabe / No responde | W104: 4 | X104: 4 | Y104: No sabe / No responde | Z104: No sabe / No responde | AA104: No sabe / No responde | AB104: No sabe / No responde | AC104: No sabe / No responde | AD104: No sabe / No responde
F105: c | G105: Los perros en la calle - sin caniles | H105: Las personas en calle - sin albergue | I105: San Ignacio de Loyola | J105: Ferias Libres | L105: Todas | O105: c | P105: c | Q105: f | S105: i | U105: c | V105: 5 | W105: 5 | X105: 5 | Y105: 2 | Z105: 2 | AA105: 1 | AB105: 2 | AC105: 4 | AD105: No sabe / No responde
B106: Femenino | C106: Planta | D106: Profesional | E106: 31- 40 | F106: c | G106: Área verde de casa Kaplan | H106: Parque de la carbonera | I106: Casa Kaplan | J106: Padre Hurtado | K106: 2 | M106: 6 | O106: b | P106: c | Q106: a | S106: g | U106: c | V106: 4 | W106: 4 | X106: 4 | Y106: 3 | Z106: 3 | AA106: 3 | AB106: No sabe / No responde | AC106: No sabe / No responde | AD106: No sabe / No responde
B107: Femenino | C107: Planta | D107: Profesional | E107: 51 - 60 | F107: d | K107: 2 | M107: 6 | O107: d | P107: c | Q107: e | S107: g | U107: c | V107: 4 | W107: 4 | X107: 3 | Y107: No sabe / No responde | Z107: 2 | AA107: 2 | AB107: No sabe / No responde | AC107: No sabe / No responde | AD107: No sabe / No responde
B108: Masculino | C108: Contrata | D108: Profesional | E108: 51 - 60 | F108: d | G108: Zona Rural | H108: Cuenca Rio Mapocho | I108: Las Carboneras | J108: Residencia y hogar compañía de jesus (Alberto Hurtado) | K108: 2 | M108: 6 | O108: c | P108: b | Q108: g | S108: h | U108: c | V108: 3 | W108: 4 | X108: 3 | Y108: 2 | Z108: 2 | AA108: 3 | AB108: 3 | AC108: 2 | AD108: No sabe / No responde
B109: Masculino | C109: Contrata | D109: Profesional | E109: 21 - 30 | F109: d | G109: Cuesta de Barriga | H109: Las Carboneras | I109: Casa de ejercicios espirituales San Ignacio de Loyola | J109: Padre Alberto Hurtado | K109: 2 | M109: 6 | O109: b | P109: c | Q109: a | S109: d | U109: c | V109: 4 | W109: 4 | X109: 4 | Y109: 4 | Z109: 3 | AA109: 2 | AB109: 3 | AC109: 4 | AD109: No sabe / No responde

Sheet GRÁFICOS
B3: I.- ANÁLISIS DE RESULTADOS
C6: 1.- ¿Cuál de las siguientes instituciones, cree usted, que es la responsanle de elaborar las ordenanzas ambientales?
C12: Detalle | G12: Conteo
B13: a | C13: a) El Congreso | G13: =COUNTIF(RESPUESTAS!F:F,GRÁFICOS!B13) -> 4
B14: b | C14: b) La Superintendencia del medioambiente | G14: =COUNTIF(RESPUESTAS!F:F,GRÁFICOS!B14) -> 14
B15: c | C15: c) El Municipio | G15: =COUNTIF(RESPUESTAS!F:F,GRÁFICOS!B15) -> 55
B16: d | C16: d) El Ministerio del medio ambiente | G16: =COUNTIF(RESPUESTAS!F:F,GRÁFICOS!B16) -> 28
B17: e | C17: e) El Ministerio de salud | G17: =COUNTIF(RESPUESTAS!F:F,GRÁFICOS!B17) -> 1
B18: f | C18: f) No lo sé | G18: =COUNTIF(RESPUESTAS!F:F,GRÁFICOS!B18) -> 2
C26: 2.- Para la pregunta 2 se deben presentar tablas de frecuencia.
C28: 3.- El cambio climático afectará en su comuna principalmente a los siguientes ámbitos (marcar los más relevantes):
C35: Detalle | F35: Conteo
B36: 1 | C36: La salud de las personas | F36: =SUM(COUNTIF(RESPUESTAS!K:K,GRÁFICOS!B36),COUNTIF(RESPUESTAS!M:M,GRÁFICOS!B36)) -> 39
B37: 2 | C37: El equilibrio del medio ambiente (ecosistemas) | F37: =SUM(COUNTIF(RESPUESTAS!K:K,GRÁFICOS!B37),COUNTIF(RESPUESTAS!M:M,GRÁFICOS!B37)) -> 52
B38: 3 | C38: Las actividades económicas | F38: =SUM(COUNTIF(RESPUESTAS!K:K,GRÁFICOS!B38),COUNTIF(RESPUESTAS!M:M,GRÁFICOS!B38)) -> 10
B39: 4 | C39: La recurrencia de incendios forestales | F39: =SUM(COUNTIF(RESPUESTAS!K:K,GRÁFICOS!B39),COUNTIF(RESPUESTAS!M:M,GRÁFICOS!B39)) -> 33
B40: 5 | C40: La recurrencia de aluviones | F40: =SUM(COUNTIF(RESPUESTAS!K:K,GRÁFICOS!B40),COUNTIF(RESPUESTAS!M:M,GRÁFICOS!B40)) -> 1
B41: 6 | C41: La prolongación de la sequía | F41: =SUM(COUNTIF(RESPUESTAS!K:K,GRÁFICOS!B41),COUNTIF(RESPUESTAS!M:M,GRÁFICOS!B41)) -> 59
B42: 7 | C42: Otro | F42: =SUM(COUNTIF(RESPUESTAS!K:K,GRÁFICOS!B42),COUNTIF(RESPUESTAS!M:M,GRÁFICOS!B42)) -> 0
B43: 8 | C43: No sé | F43: =SUM(COUNTIF(RESPUESTAS!K:K,GRÁFICOS!B43),COUNTIF(RESPUESTAS!M:M,GRÁFICOS!B43)) -> 2
C53: 4.- Ante la siguiente aformación: "mis colegas están muy preocupados por temas ambientales", usted estaría:
C60: Detalle | F60: Conteo
B61: a | C61: Totalmente de acuerdo | F61: =COUNTIF(RESPUESTAS!O:O,B61) -> 30
B62: b | C62: Más bien de acuerdo | F62: =COUNTIF(RESPUESTAS!O:O,B62) -> 35
B63: c | C63: Más bien en desacuerdo | F63: =COUNTIF(RESPUESTAS!O:O,B63) -> 33
B64: d | C64: Totalmente en desacuerdo | F64: =COUNTIF(RESPUESTAS!O:O,B64) -> 8
C77: 5.- Y respecto del territorio de la comuna, usted cree que la situación medio ambiental en los últimos 5 años ha:
C83: Detalle | F83: Conteo
B84: a | C84: Mejorado | F84: =COUNTIF(RESPUESTAS!P:P,B84) -> 23
B85: b | C85: Mantenido | F85: =COUNTIF(RESPUESTAS!P:P,B85) -> 38
B86: c | C86: Empeorado | F86: =COUNTIF(RESPUESTAS!P:P,B86) -> 40
B87: d | C87: No sé | F87: =COUNTIF(RESPUESTAS!P:P,B87) -> 5
C99: 6.- ¿Cuáles son los problemas ambientales que más afectan su comuna?. Priorice dos, según su gravedad.
C108: Detalle | G108: Conteo1
B109: a | C109: Contaminación atmosférica | G109: =SUM(COUNTIF(RESPUESTAS!Q:Q,GRÁFICOS!B109),COUNTIF(RESPUESTAS!S:S,GRÁFICOS!B109)) -> 8
B110: b | C110: Contaminación por olores | G110: =SUM(COUNTIF(RESPUESTAS!Q:Q,GRÁFICOS!B110),COUNTIF(RESPUESTAS!S:S,GRÁFICOS!B110)) -> 23
B111: c | C111: Contaminación acústica (ruidos) | G111: =SUM(COUNTIF(RESPUESTAS!Q:Q,GRÁFICOS!B111),COUNTIF(RESPUESTAS!S:S,GRÁFICOS!B111)) -> 7
B112: d | C112: Contaminación del agua | G112: =SUM(COUNTIF(RESPUESTAS!Q:Q,GRÁFICOS!B112),COUNTIF(RESPUESTAS!S:S,GRÁFICOS!B112)) -> 34
B113: e | C113: Contaminación del suelo | G113: =SUM(COUNTIF(RESPUESTAS!Q:Q,GRÁFICOS!B113),COUNTIF(RESPUESTAS!S:S,GRÁFICOS!B113)) -> 15
B114: f | C114: Gestión de Residuos Sólidos Domiciliarios | G114: =SUM(COUNTIF(RESPUESTAS!Q:Q,GRÁFICOS!B114),COUNTIF(RESPUESTAS!S:S,GRÁFICOS!B114)) -> 15
B115: g | C115: Microbasurales | G115: =SUM(COUNTIF(RESPUESTAS!Q:Q,GRÁFICOS!B115),COUNTIF(RESPUESTAS!S:S,GRÁFICOS!B115)) -> 62
B116: h | C116: Pérdida de flora y/o fauna | G116: =SUM(COUNTIF(RESPUESTAS!Q:Q,GRÁFICOS!B116),COUNTIF(RESPUESTAS!S:S,GRÁFICOS!B116)) -> 19
B117: i | C117: Tenencia irresponsable de mascotas | G117: =SUM(COUNTIF(RESPUESTAS!Q:Q,GRÁFICOS!B117),COUNTIF(RESPUESTAS!S:S,GRÁFICOS!B117)) -> 22
B118: j | C118: Riesgos por incendios y otros riesgos naturales | G118: =SUM(COUNTIF(RESPUESTAS!Q:Q,GRÁFICOS!B118),COUNTIF(RESPUESTAS!S:S,GRÁFICOS!B118)) -> 2
B119: k | C119: Otro: Indicar | G119: =SUM(COUNTIF(RESPUESTAS!Q:Q,GRÁFICOS!B119),COUNTIF(RESPUESTAS!S:S,GRÁFICOS!B119)) -> 0
C125: 7.- Cómo evaluaría la contribución que hace el municipio a la protección o cuidado del medio ambiente en su comuna:
C131: Detalle | F131: Conteo
B132: a | C132: Muy Buena | F132: =COUNTIF(RESPUESTAS!U:U,B132) -> 1
B133: b | C133: Buena | F133: =COUNTIF(RESPUESTAS!U:U,B133) -> 41
B134: c | C134: Regular | F134: =COUNTIF(RESPUESTAS!U:U,B134) -> 52
B135: d | C135: Mala | F135: =COUNTIF(RESPUESTAS!U:U,B135) -> 8
B136: e | C136: Muy Mala | F136: =COUNTIF(RESPUESTAS!U:U,B136) -> 3
C148: 8.- En una escala de 1 a 5, donde 1 significa "muy mal" y 5 "muy bien", ¿Cómo evalúa en la práctica los siguientes servicios municipales?
H149: 1 | I149: 2 | J149: 3 | K149: 4 | L149: 5 | M149: No Sabe / No responde
C150: Criterio | H150: Muy Mal | I150: Mal | J150: Ni mal ni bien | K150: Bien | L150: Muy Bien | M150: No Sabe / No responde | N150: TOTAL
C151: a) Retiro de residuos sólidos domiciliarios (o basura) | H151: =COUNTIF(RESPUESTAS!$V:$V,GRÁFICOS!H149) -> 6 | I151: =COUNTIF(RESPUESTAS!$V:$V,GRÁFICOS!I149) -> 5 | J151: =COUNTIF(RESPUESTAS!$V:$V,GRÁFICOS!J149) -> 17 | K151: =COUNTIF(RESPUESTAS!$V:$V,GRÁFICOS!K149) -> 51 | L151: =COUNTIF(RESPUESTAS!$V:$V,GRÁFICOS!L149) -> 24 | M151: =COUNTIF(RESPUESTAS!$V:$V,GRÁFICOS!M149) -> 4 | N151: =SUM(H151:M151) -> 107
C152: % | H152: =H151/$N$151*100 -> 5.607476636 | I152: =I151/$N$151*100 -> 4.672897196 | J152: =J151/$N$151*100 -> 15.88785047 | K152: 47.6635514 | L152: 22.42990654 | M152: 3.738317757 | N152: =SUM(H152:M152) -> 100
C153: b) Mantención de áreas verdes | H153: =COUNTIF(RESPUESTAS!$W:$W,GRÁFICOS!H149) -> 6 | I153: =COUNTIF(RESPUESTAS!$W:$W,GRÁFICOS!I149) -> 4 | J153: =COUNTIF(RESPUESTAS!$W:$W,GRÁFICOS!J149) -> 15 | K153: =COUNTIF(RESPUESTAS!$W:$W,GRÁFICOS!K149) -> 46 | L153: =COUNTIF(RESPUESTAS!$W:$W,GRÁFICOS!L149) -> 36 | M153: =COUNTIF(RESPUESTAS!$W:$W,GRÁFICOS!M149) -> 0 | N153: =SUM(H153:M153) -> 107
C154: % | H154: =H153/$N$153*100 -> 5.607476636 | I154: =I153/$N$153*100 -> 3.738317757 | J154: 14.01869159 | K154: 42.99065421 | L154: 33.64485981 | M154: 0 | N154: 100
C155: c) Mantención del entorno limpio | H155: =COUNTIF(RESPUESTAS!$X:$X,GRÁFICOS!H149) -> 3 | I155: =COUNTIF(RESPUESTAS!$X:$X,GRÁFICOS!I149) -> 7 | J155: =COUNTIF(RESPUESTAS!$X:$X,GRÁFICOS!J149) -> 34 | K155: =COUNTIF(RESPUESTAS!$X:$X,GRÁFICOS!K149) -> 43 | L155: =COUNTIF(RESPUESTAS!$X:$X,GRÁFICOS!L149) -> 17 | M155: =COUNTIF(RESPUESTAS!$X:$X,GRÁFICOS!M149) -> 3 | N155: 107
C156: % | H156: =H155/$N$155*100 -> 2.803738318 | I156: =I155/$N$155*100 -> 6.542056075 | J156: 31.77570093 | K156: 40.18691589 | L156: 15.88785047 | M156: 2.803738318 | N156: 100
C157: d) Retiro y prevención de microbasurales | H157: =COUNTIF(RESPUESTAS!$Y:$Y,GRÁFICOS!H149) -> 12 | I157: =COUNTIF(RESPUESTAS!$Y:$Y,GRÁFICOS!I149) -> 16 | J157: =COUNTIF(RESPUESTAS!$Y:$Y,GRÁFICOS!J149) -> 27 | K157: =COUNTIF(RESPUESTAS!$Y:$Y,GRÁFICOS!K149) -> 33 | L157: =COUNTIF(RESPUESTAS!$Y:$Y,GRÁFICOS!L149) -> 13 | M157: =COUNTIF(RESPUESTAS!$Y:$Y,GRÁFICOS!M149) -> 6 | N157: 107
C158: % | H158: =H157/$N$157*100 -> 11.21495327 | I158: =I157/$N$157*100 -> 14.95327103 | J158: 25.23364486 | K158: 30.8411215 | L158: 12.14953271 | M158: 5.607476636 | N158: 100
C159: e) Fiscalización ambiental | H159: =COUNTIF(RESPUESTAS!$Z:$Z,GRÁFICOS!H149) -> 18 | I159: =COUNTIF(RESPUESTAS!$Z:$Z,GRÁFICOS!I149) -> 24 | J159: =COUNTIF(RESPUESTAS!$Z:$Z,GRÁFICOS!J149) -> 43 | K159: =COUNTIF(RESPUESTAS!$Z:$Z,GRÁFICOS!K149) -> 13 | L159: =COUNTIF(RESPUESTAS!$Z:$Z,GRÁFICOS!L149) -> 1 | M159: =COUNTIF(RESPUESTAS!$Z:$Z,GRÁFICOS!M149) -> 8 | N159: 107
C160: % | H160: =H159/$N$159*100 -> 16.82242991 | I160: =I159/$N$159*100 -> 22.42990654 | J160: 40.18691589 | K160: 12.14953271 | L160: 0.9345794393 | M160: 7.476635514 | N160: 100
C161: f) Gestión en fomento de tenencia responsable de mascotas. | H161: =COUNTIF(RESPUESTAS!$AA:$AA,GRÁFICOS!H149) -> 14 | I161: =COUNTIF(RESPUESTAS!$AA:$AA,GRÁFICOS!I149) -> 27 | J161: =COUNTIF(RESPUESTAS!$AA:$AA,GRÁFICOS!J149) -> 39 | K161: =COUNTIF(RESPUESTAS!$AA:$AA,GRÁFICOS!K149) -> 20 | L161: =COUNTIF(RESPUESTAS!$AA:$AA,GRÁFICOS!L149) -> 2 | M161: =COUNTIF(RESPUESTAS!$AA:$AA,GRÁFICOS!M149) -> 5 | N161: 107
C162: % | H162: =H161/$N$161*100 -> 13.08411215 | I162: =I161/$N$161*100 -> 25.23364486 | J162: 36.44859813 | K162: 18.69158879 | L162: 1.869158879 | M162: 4.672897196 | N162: 100
C163: g) Atención de denuncias ambientales (sólo si ha denunciado) | H163: =COUNTIF(RESPUESTAS!$AB:$AB,GRÁFICOS!H149) -> 4 | I163: =COUNTIF(RESPUESTAS!$AB:$AB,GRÁFICOS!I149) -> 10 | J163: =COUNTIF(RESPUESTAS!$AB:$AB,GRÁFICOS!J149) -> 23 | K163: =COUNTIF(RESPUESTAS!$AB:$AB,GRÁFICOS!K149) -> 13 | L163: =COUNTIF(RESPUESTAS!$AB:$AB,GRÁFICOS!L149) -> 7 | M163: =COUNTIF(RESPUESTAS!$AB:$AB,GRÁFICOS!M149) -> 50 | N163: 107
C164: % | H164: =H163/$N$163*100 -> 3.738317757 | I164: =I163/$N$163*100 -> 9.345794393 | J164: 21.4953271 | K164: 12.14953271 | L164: 6.542056075 | M164: 46.72897196 | N164: 100
C165: h) Retiro de escombros generados en el domicilio. (sólo si ha solicitado) | H165: =COUNTIF(RESPUESTAS!$AC:$AC,GRÁFICOS!H149) -> 4 | I165: =COUNTIF(RESPUESTAS!$AC:$AC,GRÁFICOS!I149) -> 9 | J165: =COUNTIF(RESPUESTAS!$AC:$AC,GRÁFICOS!J149) -> 9 | K165: =COUNTIF(RESPUESTAS!$AC:$AC,GRÁFICOS!K149) -> 43 | L165: =COUNTIF(RESPUESTAS!$AC:$AC,GRÁFICOS!L149) -> 12 | M165: =COUNTIF(RESPUESTAS!$AC:$AC,GRÁFICOS!M149) -> 30 | N165: 107
C166: % | H166: =H165/$N$165*100 -> 3.738317757 | I166: =I165/$N$165*100 -> 8.411214953 | J166: 8.411214953 | K166: 40.18691589 | L166: 11.21495327 | M166: 28.03738318 | N166: 100
C167: i) Otros (agregar si el municipio quiere evaluar otros servicios) | H167: =COUNTIF(RESPUESTAS!$AD:$AD,GRÁFICOS!H149) -> 2 | I167: =COUNTIF(RESPUESTAS!$AD:$AD,GRÁFICOS!I149) -> 1 | J167: =COUNTIF(RESPUESTAS!$AD:$AD,GRÁFICOS!J149) -> 1 | K167: =COUNTIF(RESPUESTAS!$AD:$AD,GRÁFICOS!K149) -> 6 | L167: =COUNTIF(RESPUESTAS!$AD:$AD,GRÁFICOS!L149) -> 5 | M167: =COUNTIF(RESPUESTAS!$AD:$AD,GRÁFICOS!M149) -> 91 | N167: 106
C168: % | H168: =H167/$N$167*100 -> 1.886792453 | I168: =I167/$N$167*100 -> 0.9433962264 | J168: 0.9433962264 | K168: 5.660377358 | L168: 4.716981132 | M168: 85.8490566 | N168: 100
C196: Recordar que la información emanada de está encuesta y su respectivo análisis deberá ser publicada y puesta a disposición de toda la comunidad, a través de la página web o cualquier otro medio que disponga el municipio.
